bitfinex-derivatives/quotes_SOLF0:USTF0_20241127
["timestamp","ask_amount","ask_price","bid_price","bid_amount"]
[1732721255351,367.50738666,237.82,237.75,4.04]
[1732721255557,367.50738666,237.82,237.71,16.48763857]
[1732721255743,348.60841225,237.78,237.72,4.04]
[1732721255947,281.8358453,237.77,237.72,4.04]
[1732721256553,281.8358453,237.77,237.71,4.04]
[1732721256955,281.8358453,237.77,237.75,2.1024]
[1732721259856,281.8358453,237.77,237.76,84.32839877]
[1732721260053,348.60841225,237.78,237.77,2.1023]
[1732721260259,348.60841225,237.78,237.77,93.83188595]
[1732721260457,348.60841225,237.78,237.77,130.83782188]
[1732721260963,348.60841225,237.78,237.77,413.42078075]
[1732721261261,348.60841225,237.78,237.77,465.22909105]
[1732721261966,16.48763857,237.94,237.77,463.12679105]
[1732721262156,16.48763857,237.94,237.86,324.09364554]
[1732721262561,16.48763857,237.94,237.86,256.30582543]
[1732721262960,16.48763857,237.94,237.86,2.1015]
[1732721263167,16.48763857,237.94,237.87,2.1014]
[1732721263969,16.48763857,237.94,237.88,660.4332592]
[1732721264170,16.48763857,237.94,237.88,931.28207062]
[1732721264364,16.48763857,237.94,237.88,886.87494751]
[1732721264569,3.04658491,237.93,237.89,2.1012]
[1732721264768,3.04658491,237.92,237.89,888.97614751]
[1732721264968,3.04658491,237.91,237.89,886.87494751]
[1732721265167,3.04658491,237.9,237.89,1112.8343479]
[1732721265375,3.04658491,237.9,237.89,1412.68662994]
[1732721265968,16.48763857,238.02,237.89,1090.7101834]
[1732721266166,16.48763857,238.02,237.92,322.01436941]
[1732721266362,16.48763857,238.02,237.94,2.1008]
[1732721266568,16.48763857,238.06,237.94,322.01436941]
[1732721266767,16.48763857,238.06,237.96,322.01436941]
[1732721267167,16.48763857,238.02,237.96,322.01436941]
[1732721267368,16.48763857,238.02,237.95,408.15406323]
[1732721267769,16.48763857,238.02,237.95,86.13969382]
[1732721268375,16.48763857,238.02,237.95,82.09969382]
[1732721268563,16.48763857,238.02,237.96,2.1006]
[1732721270273,16.48763857,238.02,237.94,3.82]
[1732721270970,16.48763857,238.02,237.96,2.1006]
[1732721271171,16.48763857,237.98,237.79,32.78]
[1732721271376,16.48763857,237.98,237.81,3.82]
[1732721271768,16.48763857,237.98,237.86,2.1015]
[1732721272071,2.13858602,238.09,237.81,3.82]
[1732721272072,16.48763857,238.02,237.81,3.82]
[1732721272374,16.48763857,238.02,237.87,2.1014]
[1732721272573,16.48763857,238.02,237.84,16.48763857]
[1732721273169,16.48763857,238.02,237.85,3.8]
[1732721274473,16.48763857,238.02,237.96,2.1006]
[1732721275275,16.48763857,238.02,237.95,2.1007]
[1732721275677,16.48763857,238.02,237.94,3.82]
[1732721275975,16.48763857,238.02,237.94,5.9207]
[1732721276481,16.48763857,238.02,237.94,3.82]
[1732721276668,18.58743857,238.06,237.94,3.82]
[1732721277071,16.48763857,238.06,237.94,3.82]
[1732721277682,16.48763857,238.1,237.94,3.82]
[1732721278074,3.01291023,238.06,237.94,3.82]
[1732721278280,3.01291023,238.05,238.0,2.1003]
[1732721278476,3.01291023,238.04,238.0,2.1003]
[1732721278676,3.01291023,238.03,238.0,2.1003]
[1732721278876,3.01291023,238.02,237.94,3.82]
[1732721279173,3.01523485,238.01,237.94,3.82]
[1732721279373,3.01523485,238.0,237.94,3.82]
[1732721279679,16.48763857,238.1,237.94,3.82]
[1732721279882,3.01731974,238.06,237.94,3.82]
[1732721280078,3.01731974,238.05,237.94,3.82]
[1732721280279,3.01731974,238.04,237.94,3.82]
[1732721280475,4.75463223,238.15,237.94,3.82]
[1732721280476,3.01731974,238.03,237.94,20.30763857]
[1732721280676,3.01731974,238.02,237.94,20.30763857]
[1732721280877,2.0993,238.11,238.04,2.0999]
[1732721281077,3.01979628,238.06,238.05,3.62]
[1732721282888,3.01979628,238.06,238.05,5.7198]
[1732721283780,2.5154,238.15,238.13,2.0991]
[1732721283980,16.48763857,238.18,238.13,2.0991]
[1732721283981,16.48763857,238.22,238.13,5.7191]
[1732721284485,2.0985,238.21,238.13,5.7191]
[1732721284784,2.0986,238.19,238.13,3.62]
[1732721285377,16.48763857,238.22,238.13,3.62]
[1732721285983,18.58593857,238.22,238.16,2.0988]
[1732721286486,18.58593857,238.22,238.13,3.62]
[1732721286487,16.48763857,238.22,238.13,3.62]
[1732721286782,16.48763857,238.22,238.14,2.0989]
[1732721286978,18.56775514,238.22,238.14,3.62]
[1732721287184,2.4973,238.23,238.15,2.0989]
[1732721287383,16.48763857,238.21,238.15,2.0989]
[1732721287584,18.56061491,238.21,238.15,2.0989]
[1732721287784,16.48763857,238.17,238.04,17.37191725]
[1732721287983,16.48763857,238.17,238.05,3.62]
[1732721288186,16.48763857,238.17,238.05,16.59622116]
[1732721288385,2.0989,238.16,238.11,2.0993]
[1732721288584,16.48763857,238.17,238.1,3.62]
[1732721289086,2.099,238.15,238.1,5.7194]
[1732721289488,16.48763857,238.17,238.1,5.7194]
[1732721289686,16.48763857,238.17,238.1,3.62]
[1732721290385,2.0989,238.15,238.1,5.7194]
[1732721290585,16.48763857,238.17,238.1,3.62]
[1732721290801,16.48763857,238.21,238.1,3.62]
[1732721291282,16.48763857,238.21,238.05,12.97622116]
[1732721291488,16.48763857,238.21,238.06,3.62]
[1732721292189,2.0986,238.2,238.06,3.62]
[1732721292389,2.0986,238.2,238.07,1.32988556]
[1732721292590,18.58603857,238.21,238.15,2.0989]
[1732721292788,16.48763857,238.21,238.14,3.62]
[1732721293187,16.48763857,238.21,238.15,2.0989]
[1732721293188,2.0986,238.19,238.15,2.0989]
[1732721293393,16.48763857,238.21,238.15,2.0989]
[1732721293686,2.0985,238.2,238.15,2.0989]
[1732721294090,2.0985,238.2,238.16,2.0988]
[1732721294287,2.0986,238.19,238.14,3.62]
[1732721294486,16.48763857,238.21,238.14,3.62]
[1732721294691,16.48763857,238.21,238.16,2.0988]
[1732721294891,18.58613857,238.21,238.16,2.0988]
[1732721295089,16.48763857,238.21,238.14,3.62]
[1732721295288,2.0986,238.19,238.14,3.62]
[1732721295492,16.48763857,238.21,238.14,3.62]
[1732721295694,2.06214636,238.2,238.14,3.62]
[1732721295993,2.0989,238.16,238.14,3.62]
[1732721296197,3.01830238,238.15,238.14,3.62]
[1732721296596,3.01830238,238.15,238.14,5.719]
[1732721296993,3.01830238,238.15,238.14,3.62]
[1732721297197,3.01830238,238.15,238.12,12.95970531]
[1732721297402,3.01830238,238.14,238.12,12.95970531]
[1732721297592,3.01830238,238.13,238.12,12.95970531]
[1732721298301,3.01830238,238.13,238.12,15.05890531]
[1732721299094,3.01830238,238.13,238.12,12.95970531]
[1732721299700,3.01830238,238.13,238.12,8.99150531]
[1732721299894,5.11740238,238.13,238.12,8.99150531]
[1732721300095,5.11740238,238.13,238.12,5.02340531]
[1732721300502,5.11740238,238.13,238.06,3.42]
[1732721300503,2.0992,238.12,238.06,3.42]
[1732721300802,3.01830238,238.11,238.05,12.97622116]
[1732721301100,3.01830238,238.1,238.05,12.97622116]
[1732721301298,3.01830238,238.09,238.05,12.97622116]
[1732721301494,3.01830238,238.08,238.06,2.0997]
[1732721301698,3.01830238,238.07,238.06,2.0997]
[1732721302002,3.01830238,238.07,238.05,15.07602116]
[1732721302203,3.01830238,238.06,238.05,15.07602116]
[1732721303501,10.05895594,238.13,238.06,2.0997]
[1732721303502,2.0993,238.11,238.06,2.0997]
[1732721303901,3.02358258,238.1,238.06,2.0997]
[1732721304102,3.02358258,238.09,238.06,2.0997]
[1732721304398,3.02358258,238.08,238.06,2.0997]
[1732721304603,3.02358258,238.07,238.06,2.0997]
[1732721305206,3.02358258,238.07,238.05,15.07602116]
[1732721305507,3.02358258,238.06,238.05,12.97622116]
[1732721307296,3.02358258,238.06,238.01,3.42]
[1732721307497,3.02358258,238.05,238.01,3.42]
[1732721307702,3.02358258,238.04,238.01,3.42]
[1732721308100,2.0992,238.13,238.07,2.0996]
[1732721308304,16.45745517,238.19,238.01,3.42]
[1732721308500,9.09554993,238.18,238.01,3.42]
[1732721308703,2.11514589,238.18,238.01,3.42]
[1732721308899,16.45745517,238.19,238.01,3.42]
[1732721310005,18.55616144,238.19,238.01,3.42]
[1732721310204,2.0989,238.16,238.1,2.0994]
[1732721310418,18.55616144,238.19,238.1,2.0994]
[1732721310707,2.0989,238.16,238.1,2.0994]
[1732721310902,18.55616144,238.19,238.1,2.0994]
[1732721311202,2.0989,238.16,238.1,2.0994]
[1732721311609,18.55616144,238.19,238.1,2.0994]
[1732721311810,16.45745517,238.15,237.99,2.4826]
[1732721312008,16.45745517,238.15,238.04,3.22]
[1732721312205,2.0994,238.1,238.04,3.22]
[1732721312705,16.45745517,238.15,238.04,3.22]
[1732721313106,15.0773,238.23,238.04,3.22]
[1732721313107,16.45745517,238.19,238.04,3.22]
[1732721313309,2.099,238.14,238.08,2.0995]
[1732721313607,2.099,238.14,238.04,3.22]
[1732721314000,2.14923528,238.17,238.09,2.0994]
[1732721314201,16.45745517,238.19,238.04,3.22]
[1732721314402,16.45745517,238.15,238.04,3.22]
[1732721314600,2.0993,238.11,238.07,2.0996]
[1732721314804,16.45745517,238.15,238.07,2.0996]
[1732721315010,2.12550191,238.14,238.07,2.0996]
[1732721315215,2.0993,238.11,238.04,3.22]
[1732721315711,16.45745517,238.15,238.05,3.22]
[1732721315911,8.97657788,238.14,238.06,2.0997]
[1732721316108,16.45745517,238.15,238.05,3.22]
[1732721316310,8.97983146,238.14,238.05,3.22]
[1732721316708,8.97983146,238.13,238.03,3.51122]
[1732721316902,8.97983146,238.12,238.03,3.51122]
[1732721317210,16.45745517,238.15,238.03,3.51122]
[1732721317211,2.0995,238.1,238.05,2.0998]
[1732721317417,16.45745517,238.15,238.03,3.51122]
[1732721317711,21.43588737,238.14,238.03,3.51122]
[1732721317925,2.0994,238.1,238.05,2.0998]
[1732721318209,16.45745517,238.15,238.05,2.0998]
[1732721318412,2.0995,238.1,238.06,2.0997]
[1732721318608,16.45745517,238.15,238.06,2.0997]
[1732721318809,21.44287856,238.14,238.06,2.0997]
[1732721319003,21.44287856,238.13,238.03,3.51122]
[1732721319205,2.0996,238.09,238.05,2.0998]
[1732721319806,16.45745517,238.15,238.06,2.0997]
[1732721320005,21.45365231,238.14,238.03,3.51122]
[1732721320206,16.45745517,238.15,238.03,3.51122]
[1732721320207,21.45365231,238.13,238.03,3.51122]
[1732721320413,2.0993,238.11,238.03,3.51122]
[1732721320916,16.45745517,238.15,238.08,2.0995]
[1732721321115,2.0993,238.12,238.08,2.0995]
[1732721321505,2.0992,238.12,238.08,2.0995]
[1732721321710,16.45745517,238.15,238.03,3.51122]
[1732721321906,9.0013662,238.14,238.03,3.51122]
[1732721322110,16.45745517,238.19,238.03,3.51122]
[1732721322416,21.48656834,238.18,238.03,3.51122]
[1732721322617,21.48656834,238.17,238.03,3.51122]
[1732721322810,2.099,238.15,238.03,3.22]
[1732721323317,10.05600124,238.16,238.03,3.22]
[1732721323518,2.0991,238.14,238.03,3.22]
[1732721323713,10.05600124,238.16,238.03,3.22]
[1732721323915,2.0984,238.22,238.16,2.0988]
[1732721324211,21.49798295,238.21,238.15,3.22]
[1732721324407,1.1668,238.25,238.16,3.02]
[1732721324611,21.50743094,238.24,238.19,2.0986]
[1732721324810,9.01415357,238.23,238.2,3.02]
[1732721325108,10.05600124,238.27,238.2,3.02]
[1732721325313,2.0981,238.25,238.2,3.02]
[1732721326513,10.05600124,238.27,238.2,3.02]
[1732721326818,2.0982,238.24,238.2,3.02]
[1732721327018,10.05600124,238.24,238.2,3.02]
[1732721327218,21.49773352,238.23,238.2,3.02]
[1732721327417,2.0984,238.22,238.18,3.02]
[1732721327610,10.05600124,238.24,238.18,3.02]
[1732721327817,21.4962532,238.23,238.18,3.02]
[1732721328116,10.05600124,238.24,238.18,3.02]
[1732721328324,9.0106868,238.23,238.18,3.02]
[1732721328620,10.05600124,238.24,238.18,3.02]
[1732721328817,9.01098846,238.23,238.18,3.02]
[1732721329121,10.05600124,238.24,238.18,3.02]
[1732721329312,10.05600124,238.21,238.18,3.02]
[1732721329516,2.0987,238.18,238.16,3.02]
[1732721329717,12.15470124,238.18,238.14,3.02]
[1732721329917,12.15470124,238.18,238.13,3.02]
[1732721330120,2.0988,238.17,238.13,3.02]
[1732721330317,10.05600124,238.21,238.13,3.02]
[1732721330528,9.00789489,238.2,238.13,3.02]
[1732721330815,12.15450124,238.21,238.15,2.0989]
[1732721331421,2.0985,238.2,238.15,2.0989]
[1732721331818,2.0985,238.2,238.13,3.02]
[1732721332013,10.05600124,238.21,238.13,3.02]
[1732721332216,10.05600124,238.15,237.85,2.05596405]
[1732721332413,21.4860801,238.2,237.96,10.05600124]
[1732721332414,10.05600124,238.12,237.96,10.05600124]
[1732721332612,10.05600124,238.09,237.96,10.05600124]
[1732721333118,10.05600124,238.12,238.04,2.0999]
[1732721333317,10.05600124,238.12,238.03,3.02]
[1732721333821,2.099,238.14,238.07,2.0996]
[1732721334219,10.05600124,238.15,238.03,3.02]
[1732721334521,12.15500124,238.15,238.03,3.02]
[1732721335221,10.05600124,238.15,238.03,3.02]
[1732721335720,10.05600124,238.15,238.09,2.0994]
[1732721338029,10.05600124,238.15,238.1,2.0994]
[1732721339221,2.0988,238.18,238.11,3.02]
[1732721339417,12.16639036,238.21,238.12,3.02]
[1732721339418,9.00249515,238.17,238.12,3.02]
[1732721339614,10.05600124,238.21,238.12,3.02]
[1732721339815,9.00311921,238.2,238.12,3.02]
[1732721340019,12.15450124,238.21,238.12,3.02]
[1732721340020,10.05600124,238.21,238.12,3.02]
[1732721340223,21.48070587,238.2,238.12,3.02]
[1732721340526,2.0986,238.2,238.14,2.099]
[1732721340725,2.09516911,238.2,238.14,2.099]
[1732721341022,10.05600124,238.21,238.12,3.02]
[1732721341222,2.0987,238.18,238.12,3.02]
[1732721341422,10.05600124,238.21,238.12,3.02]
[1732721341620,9.00230553,238.2,238.12,3.02]
[1732721341820,12.15450124,238.21,238.12,3.02]
[1732721342022,9.00275955,238.2,238.12,3.02]
[1732721342331,10.05600124,238.21,238.12,3.02]
[1732721342623,9.00188302,238.2,238.12,3.02]
[1732721343031,10.05600124,238.21,238.12,3.02]
[1732721343330,2.0986,238.19,238.12,3.02]
[1732721343529,12.19083633,238.21,238.12,3.02]
[1732721344326,10.05600124,238.18,238.12,3.02]
[1732721345336,10.05600124,238.21,238.12,3.02]
[1732721345526,21.47221429,238.2,238.12,3.02]
[1732721345732,12.58,238.29,238.12,3.02]
[1732721346033,2.0983,238.22,238.17,2.0987]
[1732721346230,9.00361504,238.21,238.17,2.0987]
[1732721346530,2.0984,238.21,238.17,2.0987]
[1732721346731,12.15440124,238.21,238.16,2.0989]
[1732721346938,12.15440124,238.21,238.12,3.02]
[1732721347740,10.05600124,238.21,238.16,2.0988]
[1732721347932,10.05600124,238.24,238.12,3.02]
[1732721348136,9.00057457,238.23,238.12,3.02]
[1732721348341,2.0982,238.23,238.17,2.0987]
[1732721348632,2.0982,238.23,238.12,3.02]
[1732721348834,10.05600124,238.24,238.12,3.02]
[1732721349032,7.5392,238.31,238.17,10.05600124]
[1732721349233,10.4728,238.66,238.17,10.05600124]
[1732721349234,21.47893947,238.3,238.17,10.05600124]
[1732721349431,10.05600124,238.33,238.18,4.9986]
[1732721349635,10.05600124,238.33,238.25,2.098]
[1732721349636,8.99954779,238.32,238.25,2.098]
[1732721349938,12.47279779,238.32,238.26,2.84]
[1732721350240,10.05600124,238.33,238.26,2.84]
[1732721350438,2.0975,238.31,238.26,4.938]
[1732721350834,2.0975,238.31,238.26,2.84]
[1732721351039,2.0975,238.32,238.27,2.0979]
[1732721351438,10.05600124,238.33,238.27,2.0979]
[1732721351840,8.99274629,238.32,238.27,2.0979]
[1732721352040,10.05600124,238.33,238.27,2.0979]
[1732721352240,2.0976,238.31,238.26,4.938]
[1732721352441,10.05600124,238.33,238.26,4.938]
[1732721352641,8.99007783,238.32,238.26,4.938]
[1732721352839,11.08672651,238.31,238.26,4.938]
[1732721353040,2.0975,238.31,238.26,2.84]
[1732721353237,10.05600124,238.33,238.26,2.84]
[1732721353439,10.05600124,238.29,238.22,2.84]
[1732721354941,12.15370124,238.29,238.24,2.0981]
[1732721355141,12.15370124,238.29,238.22,2.84]
[1732721355745,12.15370124,238.29,238.24,2.0981]
[1732721356548,2.0978,238.28,238.24,2.0981]
[1732721356748,2.0978,238.28,238.22,2.84]
[1732721356943,10.05600124,238.29,238.14,5.0061]
[1732721357147,2.5926,238.32,238.14,5.0061]
[1732721357148,10.05600124,238.26,238.15,2.84]
[1732721358046,12.15410124,238.26,238.21,2.0984]
[1732721358246,12.15410124,238.26,238.22,2.84]
[1732721360048,10.05600124,238.26,238.21,2.0984]
[1732721360248,10.05600124,238.26,238.22,4.9383]
[1732721360442,2.0979,238.27,238.22,4.9383]
[1732721360851,10.05600124,238.26,238.22,2.84]
[1732721361746,2.0982,238.24,238.22,2.84]
[1732721363353,10.05600124,238.26,238.22,2.84]
[1732721364351,10.05600124,238.26,238.14,5.0061]
[1732721364649,2.0982,238.24,238.15,2.84]
[1732721365153,2.0982,238.24,238.19,2.0985]
[1732721365749,10.05600124,238.26,238.15,2.84]
[1732721365955,10.05600124,238.29,238.15,2.84]
[1732721366555,2.5926,238.32,238.16,10.05600124]
[1732721366860,2.0978,238.29,238.16,10.05600124]
[1732721367349,2.0978,238.29,238.24,2.0981]
[1732721367556,2.0976,238.31,238.25,2.84]
[1732721367857,2.0976,238.31,238.16,10.05600124]
[1732721367858,10.05600124,238.33,238.26,2.84]
[1732721368057,8.99546112,238.32,238.26,2.84]
[1732721368256,2.0976,238.31,238.26,2.84]
[1732721368959,10.05600124,238.33,238.26,4.938]
[1732721369254,21.45277487,238.32,238.26,4.938]
[1732721369453,8.99287658,238.31,238.26,4.938]
[1732721369654,10.05600124,238.33,238.26,4.938]
[1732721369855,21.44775673,238.32,238.26,4.938]
[1732721370059,2.0977,238.3,238.26,4.938]
[1732721371355,10.05600124,238.33,238.26,4.938]
[1732721371556,8.98986628,238.32,238.26,4.938]
[1732721371754,2.0976,238.3,238.27,2.0979]
[1732721373553,10.05600124,238.3,238.26,4.938]
[1732721373754,2.0977,238.29,238.26,4.938]
[1732721373958,10.05600124,238.3,238.26,4.938]
[1732721374165,12.15360124,238.3,238.26,2.84]
[1732721374359,2.6332,238.37,238.27,2.0979]
[1732721374360,10.04249825,238.32,238.27,2.0979]
[1732721374560,10.04249825,238.34,238.26,2.84]
[1732721374858,6.26594349,238.3,238.26,2.84]
[1732721375460,6.26594349,238.3,238.29,2.0977]
[1732721376264,6.26631086,238.3,238.29,2.0977]
[1732721376458,6.26631086,238.3,238.26,2.84]
[1732721376666,6.26631086,238.3,238.28,2.0978]
[1732721376867,12.1396045,238.32,238.28,2.0978]
[1732721377068,10.0421045,238.32,238.28,2.0978]
[1732721377259,10.0421045,238.29,238.16,4.1977]
[1732721377459,10.0421045,238.29,238.17,2.82]
[1732721377661,2.0978,238.28,238.2,2.0984]
[1732721377868,2.0978,238.28,238.17,2.82]
[1732721378160,2.0978,238.28,238.2,2.0985]
[1732721378361,2.0979,238.27,238.17,2.82]
[1732721378564,10.0421045,238.29,238.17,2.82]
[1732721378867,2.098,238.26,238.18,2.82]
[1732721379364,10.0421045,238.29,238.18,2.82]
[1732721379563,2.0979,238.27,238.18,2.82]
[1732721380166,2.0979,238.27,238.22,2.0983]
[1732721380558,12.1399045,238.29,238.23,2.0982]
[1732721380759,2.0978,238.29,238.23,2.0982]
[1732721380963,12.09561384,238.32,238.18,2.82]
[1732721381159,21.45630301,238.31,238.24,2.0981]
[1732721381359,8.99303642,238.3,238.24,2.0981]
[1732721381565,10.0421045,238.32,238.24,2.0981]
[1732721381764,21.46331151,238.31,238.24,2.0981]
[1732721382064,2.0978,238.28,238.24,2.0981]
[1732721382863,2.0979,238.27,238.22,2.0982]
[1732721383469,2.0979,238.27,238.18,2.82]
[1732721383768,2.0979,238.28,238.18,2.82]
[1732721383969,10.0421045,238.29,238.18,2.82]
[1732721384169,10.0421045,238.29,238.19,2.82]
[1732721384773,12.1398045,238.29,238.19,2.82]
[1732721384967,10.0421045,238.29,238.19,2.82]
[1732721385468,11.10687464,238.28,238.19,2.82]
[1732721385770,10.0421045,238.29,238.19,2.82]
[1732721385969,9.01148488,238.28,238.19,2.82]
[1732721386170,2.0979,238.28,238.19,2.82]
[1732721387169,2.0979,238.28,238.23,2.0982]
[1732721387670,2.0979,238.28,238.19,2.82]
[1732721387671,12.1398045,238.29,238.24,2.0981]
[1732721387862,9.01582734,238.28,238.24,2.0981]
[1732721388064,2.0976,238.31,238.19,2.82]
[1732721388268,21.51431997,238.3,238.27,2.0979]
[1732721388466,9.01861703,238.29,238.27,2.0979]
[1732721388664,10.0421045,238.32,238.27,2.0979]
[1732721388867,23.61021936,238.31,238.26,2.82]
[1732721389068,21.51271936,238.3,238.26,2.82]
[1732721389266,9.01645926,238.29,238.26,2.82]
[1732721389471,2.0975,238.31,238.27,2.0979]
[1732721389773,21.51438553,238.3,238.27,2.0979]
[1732721390072,4.1903,238.59,238.33,2.0973]
[1732721390268,12.58,238.51,238.34,13.0421045]
[1732721390463,2.575,238.52,238.34,13.0421045]
[1732721390667,9.02486665,238.5,238.34,13.0421045]
[1732721391064,9.02486665,238.5,238.42,2.0965]
[1732721391568,2.575,238.52,238.38,10.0421045]
[1732721391769,8.84624631,238.49,238.43,2.0964]
[1732721391969,2.575,238.52,238.43,2.0964]
[1732721392772,2.575,238.52,238.38,10.0421045]
[1732721393374,2.575,238.52,238.45,2.0963]
[1732721393673,2.575,238.52,238.38,10.0421045]
[1732721394172,2.575,238.52,238.44,2.0963]
[1732721394374,2.575,238.52,238.38,10.0421045]
[1732721394564,2.575,238.52,238.45,2.0963]
[1732721394765,2.575,238.52,238.38,10.0421045]
[1732721394969,2.08116921,238.56,238.41,10.0421045]
[1732721395164,2.08116921,238.56,238.49,2.0959]
[1732721395476,12.1371045,238.6,238.44,10.0421045]
[1732721395774,2.5619,238.59,238.51,2.0957]
[1732721395969,2.5619,238.59,238.35,2.5185]
[1732721396269,10.0421045,238.57,238.43,2.4385]
[1732721396578,2.5619,238.59,238.47,10.0421045]
[1732721396768,2.5619,238.59,238.49,2.0959]
[1732721396972,10.0421045,238.57,238.44,2.6113]
[1732721398767,2.5619,238.59,238.45,10.0421045]
[1732721399374,10.0421045,238.57,238.44,2.6113]
[1732721400171,10.0421045,238.57,238.48,2.096]
[1732721400568,2.5619,238.59,238.44,2.6113]
[1732721401075,2.5619,238.59,238.45,10.0421045]
[1732721401277,4.657,238.59,238.48,2.096]
[1732721401474,4.657,238.59,238.45,10.0421045]
[1732721401672,2.5619,238.59,238.45,10.0421045]
[1732721401867,4.657,238.59,238.48,2.096]
[1732721402175,2.5619,238.59,238.45,10.0421045]
[1732721402678,2.5619,238.59,238.48,10.0421045]
[1732721403178,10.0421045,238.65,238.48,10.0421045]
[1732721403370,12.1367045,238.65,238.54,2.0955]
[1732721403573,10.0421045,238.65,238.54,2.0955]
[1732721404375,10.0421045,238.65,238.48,10.0421045]
[1732721404376,2.0947,238.64,238.55,2.0954]
[1732721404578,10.0421045,238.65,238.48,10.0421045]
[1732721405170,2.0969634,238.66,238.44,2.6113]
[1732721405171,10.0421045,238.59,238.44,2.6113]
[1732721405368,10.0421045,238.56,238.41,10.0421045]
[1732721405573,2.0956,238.53,238.38,10.0421045]
[1732721405773,10.0421045,238.56,238.41,10.0421045]
[1732721405976,7.4472,238.58,238.44,10.0421045]
[1732721406177,7.4472,238.58,238.48,2.096]
[1732721406475,7.4472,238.58,238.44,10.0421045]
[1732721406675,2.0956,238.53,238.44,2.0963]
[1732721406870,10.0421045,238.53,238.38,10.0421045]
[1732721407078,10.0421045,238.56,238.38,10.0421045]
[1732721407273,7.4472,238.58,238.44,10.0421045]
[1732721407679,2.0954,238.56,238.47,2.0961]
[1732721408882,2.0954,238.56,238.41,10.0421045]
[1732721409077,2.0954,238.56,238.48,2.096]
[1732721409974,10.0421045,238.56,238.36,5.0123]
[1732721410181,10.0421045,238.52,238.37,10.0421045]
[1732721410880,12.1378045,238.52,238.37,10.0421045]
[1732721411083,2.0957,238.52,238.37,10.0421045]
[1732721411880,2.0957,238.52,238.44,2.0964]
[1732721412387,10.0421045,238.55,238.4,10.0421045]
[1732721412986,10.0421045,238.55,238.45,2.0962]
[1732721413289,10.0421045,238.55,238.4,10.0421045]
[1732721413889,2.0958,238.51,238.4,10.0421045]
[1732721414083,10.0421045,238.55,238.4,10.0421045]
[1732721414286,2.0957,238.53,238.46,2.0962]
[1732721414693,10.0421045,238.55,238.4,10.0421045]
[1732721414989,10.0421045,238.52,238.37,10.0421045]
[1732721415390,2.096,238.49,238.42,2.0965]
[1732721415896,2.096,238.49,238.37,10.0421045]
[1732721416086,10.0421045,238.55,238.37,10.0421045]
[1732721416493,10.0421045,238.55,238.42,2.0965]
[1732721416494,2.0957,238.52,238.42,2.0965]
[1732721416694,2.0957,238.52,238.37,10.0421045]
[1732721416895,10.0421045,238.55,238.37,10.0421045]
[1732721417091,2.0958,238.51,238.42,2.0965]
[1732721417389,10.0421045,238.52,238.36,5.0123]
[1732721417594,2.096,238.49,238.4,2.0967]
[1732721417790,10.0421045,238.52,238.36,5.0123]
[1732721417992,10.0421045,238.49,238.36,5.0123]
[1732721418187,2.0963,238.46,238.36,5.0123]
[1732721418397,10.0421045,238.49,238.36,5.0123]
[1732721418898,2.0961,238.48,238.36,5.0123]
[1732721419097,10.0421045,238.49,238.36,5.0123]
[1732721419295,2.096,238.49,238.43,2.0965]
[1732721419494,10.0421045,238.52,238.36,5.0123]
[1732721420001,2.096,238.48,238.36,5.0123]
[1732721420498,44.08375773,238.56,238.38,10.0421045]
[1732721420899,44.08375773,238.56,238.46,2.0961]
[1732721420900,2.0957,238.52,238.46,2.0961]
[1732721421088,44.08375773,238.56,238.36,5.0123]
[1732721421289,44.08375773,238.56,238.41,10.0421045]
[1732721421495,44.08375773,238.56,238.47,2.0961]
[1732721422099,44.08375773,238.56,238.4,10.0421045]
[1732721422100,10.0421045,238.54,238.45,2.0963]
[1732721422398,10.0421045,238.54,238.4,10.0421045]
[1732721422601,2.0957,238.52,238.4,10.0421045]
[1732721422799,2.0957,238.52,238.46,2.0962]